[Event "Esbjerg Efterår 2024 - Esbjergmesterskabet"]
[Site "Esbjerg, Denmark"]
[Date "2024.10.20"]
[Round "6.1"]
[White "Løftgaard, Mikkel Vinh"]
[Black "Jacobsen, Mikkel Manosri"]
[Result "1/2-1/2"]
[TimeControl "1.-3. 20 min + 5 sek, 4.-7. 90 min + 30 sek + 15 min efter 40 træk"]
[WhiteElo "2209"]
[BlackElo "2350"]

1. e4 {[%clk 01:11:51]} {[%emt 00:19:08]} c5 {[%clk 01:28:35]} {[%emt
00:02:21]} 2. Nf3 {[%clk 01:10:13]} {[%emt 00:02:11]} Nc6 {[%clk 01:29:00]}
{[%emt 00:00:06]} 3. c3 {[%clk 01:10:37]} {[%emt 00:00:06]} e6 {[%clk
01:29:25]} {[%emt 00:00:04]} 4. d4 {[%clk 01:10:57]} {[%emt 00:00:11]} d5
{[%clk 01:29:51]} {[%emt 00:00:04]} 5. exd5 {[%clk 01:11:16]} {[%emt 00:00:10]}
exd5 {[%clk 01:30:17]} {[%emt 00:00:04]} 6. Bb5 {[%clk 01:11:21]} {[%emt
00:00:25]} Bd6 {[%clk 01:30:42]} {[%emt 00:00:05]} 7. O-O {[%clk 01:11:30]}
{[%emt 00:00:21]} Nf6 {[%clk 01:31:09]} {[%emt 00:00:04]} 8. Re1+ {[%clk
01:11:35]} {[%emt 00:00:25]} Be6 {[%clk 01:31:33]} {[%emt 00:00:06]} 9. Bg5
{[%clk 01:11:17]} {[%emt 00:00:48]} O-O {[%clk 01:27:31]} {[%emt 00:04:31]} 10.
Ne5 {[%clk 01:03:56]} {[%emt 00:07:51]} h6 {[%clk 01:15:50]} {[%emt 00:12:12]}
11. Bh4 {[%clk 01:00:56]} {[%emt 00:03:30]} Qc7 {[%clk 01:02:41]} {[%emt
00:13:39]} 12. Bxc6 {[%clk 00:47:32]} {[%emt 00:13:53]} bxc6 {[%clk 01:03:02]}
{[%emt 00:00:09]} 13. Bxf6 {[%clk 00:47:57]} {[%emt 00:00:05]} gxf6 {[%clk
01:03:29]} {[%emt 00:00:03]} 14. Ng4 {[%clk 00:48:18]} {[%emt 00:00:09]} f5
{[%clk 00:44:26]} {[%emt 00:19:33]} 15. Nxh6+ {[%clk 00:33:46]} {[%emt
00:15:02]} Kg7 {[%clk 00:44:51]} {[%emt 00:00:06]} 16. Qh5 {[%clk 00:34:08]}
{[%emt 00:00:07]} Bxh2+ {[%clk 00:42:44]} {[%emt 00:02:37]} 17. Qxh2 {[%clk
00:28:10]} {[%emt 00:06:27]} Qxh2+ {[%clk 00:43:08]} {[%emt 00:00:06]} 18. Kxh2
{[%clk 00:28:33]} {[%emt 00:00:07]} Rh8 {[%clk 00:41:38]} {[%emt 00:02:00]} 19.
dxc5 {[%clk 00:21:52]} {[%emt 00:07:12]} Rxh6+ {[%clk 00:40:54]} {[%emt
00:01:13]} 20. Kg3 {[%clk 00:22:13]} {[%emt 00:00:09]} Rb8 {[%clk 00:12:40]}
{[%emt 00:28:45]} 21. b3 {[%clk 00:19:39]} {[%emt 00:03:05]} Rg6+ {[%clk
00:08:38]} {[%emt 00:04:31]} 22. Kf3 {[%clk 00:19:08]} {[%emt 00:01:00]} Rb5
{[%clk 00:08:22]} {[%emt 00:00:47]} 23. b4 {[%clk 00:14:11]} {[%emt 00:05:27]}
d4 {[%clk 00:08:50]} {[%emt 00:00:02]} 24. Na3 {[%clk 00:14:30]} {[%emt
00:00:11]} Rb8 {[%clk 00:08:28]} {[%emt 00:00:53]} 25. Nc2 {[%clk 00:14:18]}
{[%emt 00:00:41]} dxc3 {[%clk 00:05:24]} {[%emt 00:03:34]} 26. a3 {[%clk
00:12:38]} {[%emt 00:02:11]} a5 {[%clk 00:04:41]} {[%emt 00:01:13]} 27. Ke3
{[%clk 00:10:33]} {[%emt 00:02:34]} Rxg2 {[%clk 00:04:03]} {[%emt 00:01:08]} 28.
Rg1 {[%clk 00:10:55]} {[%emt 00:00:08]} Rg4 {[%clk 00:03:41]} {[%emt 00:00:52]}
29. Kd3 {[%clk 00:10:02]} {[%emt 00:01:23]} Kf6 {[%clk 00:03:42]} {[%emt
00:00:28]} 30. Rxg4 {[%clk 00:10:12]} {[%emt 00:00:20]} fxg4 {[%clk 00:04:11]}
{[%emt 00:00:02]} 31. Kxc3 {[%clk 00:10:24]} {[%emt 00:00:18]} Bd5 {[%clk
00:02:33]} {[%emt 00:02:07]} 32. Ne3 {[%clk 00:10:04]} {[%emt 00:00:50]} axb4+
{[%clk 00:02:44]} {[%emt 00:00:19]} 33. axb4 {[%clk 00:10:27]} {[%emt
00:00:07]} Bf3 {[%clk 00:03:11]} {[%emt 00:00:03]} 34. Ra6 {[%clk 00:09:42]}
{[%emt 00:01:15]} Ke6 {[%clk 00:00:37]} {[%emt 00:03:04]} 35. Nc2 {[%clk
00:09:18]} {[%emt 00:00:54]} Be4 {[%clk 00:00:38]} {[%emt 00:00:29]} 36. Nd4+
{[%clk 00:09:16]} {[%emt 00:00:32]} Kd7 {[%clk 00:00:41]} {[%emt 00:00:27]} 37.
Ra7+ {[%clk 00:08:40]} {[%emt 00:01:06]} Ke8 {[%clk 00:00:51]} {[%emt
00:00:20]} 38. b5 {[%clk 00:02:49]} {[%emt 00:06:22]} cxb5 {[%clk 00:01:06]}
{[%emt 00:00:15]} 39. Kb4 {[%clk 00:03:18]} Kf8 {[%clk 00:00:40]} {[%emt
00:00:56]} 40. c6 {[%clk 00:03:37]} {[%emt 00:00:11]} Rd8 {[%clk 00:00:59]}
{[%emt 00:00:11]} 41. Kc3 {[%clk 00:02:38]} {[%emt 00:01:29]} b4+ {[%clk
00:11:56]} {[%emt 00:04:33]} 42. Kc4 {[%clk 00:17:58]} {[%emt 00:00:10]} Bxc6
{[%clk 00:12:16]} {[%emt 00:00:10]} 43. Nxc6 {[%clk 00:18:00]} {[%emt
00:00:28]} Rd2 {[%clk 00:12:42]} {[%emt 00:00:03]} 44. Nxb4 {[%clk 00:06:52]}
{[%emt 00:11:39]} Rxf2 {[%clk 00:13:00]} {[%emt 00:00:12]} 45. Nd3 {[%clk
00:07:03]} {[%emt 00:00:19]} Rf3 {[%clk 00:08:29]} {[%emt 00:05:01]} 46. Ne5
{[%clk 00:06:41]} {[%emt 00:00:51]} Rf4+ {[%clk 00:08:53]} {[%emt 00:00:06]} 47.
Kd3 {[%clk 00:07:04]} {[%emt 00:00:07]} Kg7 {[%clk 00:08:53]} {[%emt 00:00:30]}
48. Ke3 {[%clk 00:07:10]} {[%emt 00:00:24]} Rf5 {[%clk 00:09:13]} {[%emt
00:00:11]} 49. Nxg4 {[%clk 00:07:31]} {[%emt 00:00:09]} Rf1 {[%clk 00:09:36]}
{[%emt 00:00:06]} 50. Ne5 {[%clk 00:07:48]} {[%emt 00:00:14]} Rf5 {[%clk
00:10:00]} {[%emt 00:00:06]} 51. Nd3 {[%clk 00:07:57]} {[%emt 00:00:21]} Rf1
{[%clk 00:10:11]} {[%emt 00:00:19]} 52. Nf4 {[%clk 00:08:22]} {[%emt 00:00:06]}
Kf6 {[%clk 00:10:25]} {[%emt 00:00:16]} 53. Ra6+ {[%clk 00:08:31]} {[%emt
00:00:21]} Kg5 {[%clk 00:09:17]} {[%emt 00:01:37]} 54. Ne2 {[%clk 00:08:32]}
{[%emt 00:00:30]} Rf6 {[%clk 00:09:36]} {[%emt 00:00:11]} 55. Ra8 {[%clk
00:08:04]} {[%emt 00:00:58]} Rb6 {[%clk 00:09:05]} {[%emt 00:01:01]} 56. Nd4
{[%clk 00:08:20]} {[%emt 00:00:14]} Rf6 {[%clk 00:09:16]} {[%emt 00:00:19]} 57.
Nf3+ {[%clk 00:08:41]} {[%emt 00:00:09]} Kf5 {[%clk 00:09:26]} {[%emt
00:00:18]} 58. Ra5+ {[%clk 00:09:03]} {[%emt 00:00:09]} Kg6 {[%clk 00:09:18]}
{[%emt 00:00:38]} 59. Ne5+ {[%clk 00:09:23]} {[%emt 00:00:10]} Kg7 {[%clk
00:09:39]} {[%emt 00:00:08]} 60. Ra1 {[%clk 00:09:31]} {[%emt 00:00:23]} Rf5
{[%clk 00:09:43]} {[%emt 00:00:27]} 61. Ke4 {[%clk 00:09:53]} {[%emt 00:00:08]}
Rf2 {[%clk 00:09:56]} {[%emt 00:00:16]} 62. Rg1+ {[%clk 00:10:14]} {[%emt
00:00:08]} Kf8 {[%clk 00:10:15]} {[%emt 00:00:10]} 63. Nd3 {[%clk 00:10:09]}
{[%emt 00:00:36]} Rf6 {[%clk 00:10:35]} {[%emt 00:00:09]} 64. Ke5 {[%clk
00:10:34]} {[%emt 00:00:06]} Rg6 {[%clk 00:10:15]} {[%emt 00:00:50]} 65. Ra1
{[%clk 00:10:42]} {[%emt 00:00:22]} Kg7 {[%clk 00:10:38]} {[%emt 00:00:07]} 66.
Nf4 {[%clk 00:10:59]} {[%emt 00:00:13]} Rg5+ {[%clk 00:11:03]} {[%emt
00:00:05]} 67. Ke4 {[%clk 00:11:21]} {[%emt 00:00:08]} Kf8 {[%clk 00:09:52]}
{[%emt 00:01:40]} 68. Ra7 {[%clk 00:11:34]} {[%emt 00:00:18]} Kg8 {[%clk
00:10:11]} {[%emt 00:00:11]} 69. Nd3 {[%clk 00:11:45]} {[%emt 00:00:19]} Rh5
{[%clk 00:08:51]} {[%emt 00:01:50]} 70. Ne5 {[%clk 00:12:03]} {[%emt 00:00:12]}
Rg5 {[%clk 00:09:07]} {[%emt 00:00:14]} 71. Kf4 {[%clk 00:11:39]} {[%emt
00:00:54]} Rg1 {[%clk 00:09:29]} {[%emt 00:00:08]} 72. Ng4 {[%clk 00:11:19]}
{[%emt 00:00:51]} Kg7 {[%clk 00:09:46]} {[%emt 00:00:13]} 73. Ne3 {[%clk
00:11:33]} {[%emt 00:00:16]} Re1 {[%clk 00:09:14]} {[%emt 00:01:02]} 74. Nf5+
{[%clk 00:11:45]} {[%emt 00:00:18]} Kf6 {[%clk 00:09:36]} {[%emt 00:00:08]} 75.
Nd6 {[%clk 00:11:23]} {[%emt 00:00:52]} Kg6 {[%clk 00:09:39]} {[%emt 00:00:24]}
76. Kg4 {[%clk 00:11:06]} {[%emt 00:00:49]} Rg1+ {[%clk 00:09:46]} {[%emt
00:00:24]} 77. Kf3 {[%clk 00:11:15]} {[%emt 00:00:21]} Rf1+ {[%clk 00:10:07]}
{[%emt 00:00:09]} 78. Ke2 {[%clk 00:11:39]} {[%emt 00:00:05]} Rf4 {[%clk
00:10:22]} {[%emt 00:00:15]} 79. Rxf7 {[%clk 00:12:03]} {[%emt 00:00:07]} Rxf7
{[%clk 00:10:48]} {[%emt 00:00:04]} 80. Nxf7 {[%clk 00:12:25]} {[%emt
00:00:08]} 1/2-1/2

[Event "Esbjerg Efterår 2024 - Esbjergmesterskabet"]
[Site "Esbjerg, Denmark"]
[Date "2024.10.20"]
[Round "6.2"]
[White "Medhus, Vitus Bondo"]
[Black "Hansen, Lars"]
[Result "1-0"]
[TimeControl "1.-3. 20 min + 5 sek, 4.-7. 90 min + 30 sek + 15 min efter 40 træk"]
[WhiteElo "2246"]
[BlackElo "2203"]

1. e4 {[%clk 01:30:42]} {[%emt 00:00:16]} e6 {[%clk 01:23:44]} {[%emt
00:07:17]} 2. d4 {[%clk 01:30:49]} {[%emt 00:00:23]} d5 {[%clk 01:23:04]}
{[%emt 00:01:10]} 3. e5 {[%clk 01:31:14]} {[%emt 00:00:06]} c5 {[%clk
01:23:28]} {[%emt 00:00:06]} 4. c3 {[%clk 01:31:39]} {[%emt 00:00:04]} Qb6
{[%clk 01:23:40]} {[%emt 00:00:19]} 5. Nf3 {[%clk 01:31:49]} {[%emt 00:00:19]}
Nc6 {[%clk 01:24:03]} {[%emt 00:00:07]} 6. a3 {[%clk 01:32:13]} {[%emt
00:00:07]} Nh6 {[%clk 01:22:34]} {[%emt 00:01:58]} 7. b4 {[%clk 01:31:31]}
{[%emt 00:01:12]} cxd4 {[%clk 01:22:57]} {[%emt 00:00:07]} 8. Bxh6 {[%clk
01:29:33]} {[%emt 00:02:28]} gxh6 {[%clk 01:22:38]} {[%emt 00:00:49]} 9. cxd4
{[%clk 01:29:53]} {[%emt 00:00:10]} Bd7 {[%clk 01:21:27]} {[%emt 00:01:40]} 10.
Be2 {[%clk 01:25:53]} {[%emt 00:04:30]} Rc8 {[%clk 01:13:35]} {[%emt 00:08:22]}
11. O-O {[%clk 01:24:59]} {[%emt 00:01:24]} Bg7 {[%clk 01:11:50]} {[%emt
00:02:15]} 12. Qd2 {[%clk 01:21:00]} {[%emt 00:04:30]} O-O {[%clk 01:11:33]}
{[%emt 00:00:46]} 13. Nc3 {[%clk 00:58:56]} {[%emt 00:22:35]} Nxd4 {[%clk
00:45:07]} {[%emt 00:26:56]} 14. Nxd4 {[%clk 00:59:18]} {[%emt 00:00:08]} Bxe5
{[%clk 00:45:30]} {[%emt 00:00:07]} 15. Nxd5 {[%clk 00:52:10]} {[%emt
00:07:38]} exd5 {[%clk 00:40:16]} {[%emt 00:05:44]} 16. Rad1 {[%clk 00:51:58]}
{[%emt 00:00:42]} Ba4 {[%clk 00:20:00]} {[%emt 00:20:46]} 17. Nf5 {[%clk
00:52:21]} {[%emt 00:00:07]} Rc2 {[%clk 00:03:40]} {[%emt 00:16:49]} 18. Qd3
{[%clk 00:50:42]} {[%emt 00:02:09]} Re8 {[%clk 00:01:46]} {[%emt 00:02:24]} 19.
Ne3 {[%clk 00:45:03]} {[%emt 00:06:10]} Rc3 {[%clk 00:00:37]} {[%emt 00:01:40]}
20. Qd2 {[%clk 00:45:28]} {[%emt 00:00:04]} Bxd1 {[%clk 00:00:45]} {[%emt
00:00:22]} 21. Rxd1 {[%clk 00:45:26]} {[%emt 00:00:32]} Qd6 {[%clk 00:00:44]}
{[%emt 00:00:31]} 22. Nxd5 {[%clk 00:43:35]} {[%emt 00:02:21]} Rcc8 {[%clk
00:00:41]} {[%emt 00:00:34]} 23. g3 {[%clk 00:43:57]} {[%emt 00:00:08]} Qg6
{[%clk 00:00:41]} {[%emt 00:00:29]} 24. Bb5 {[%clk 00:44:08]} {[%emt 00:00:19]}
Re6 {[%clk 00:00:32]} {[%emt 00:00:39]} 25. Bd7 {[%clk 00:44:05]} {[%emt
00:00:33]} Rc2 {[%clk 00:00:53]} {[%emt 00:00:10]} 26. Qe3 {[%clk 00:43:01]}
{[%emt 00:01:34]} Qh5 {[%clk 00:00:56]} {[%emt 00:00:27]} 27. Rf1 {[%clk
00:40:23]} {[%emt 00:03:07]} Rd6 {[%clk 00:00:58]} {[%emt 00:00:28]} 28. Bf5
{[%clk 00:39:52]} {[%emt 00:01:01]} Rxd5 {[%clk 00:00:52]} {[%emt 00:00:36]} 29.
Bxc2 {[%clk 00:40:14]} {[%emt 00:00:09]} Bd4 {[%clk 00:00:55]} {[%emt
00:00:27]} 30. Qe4 {[%clk 00:40:04]} {[%emt 00:00:39]} Bb6 {[%clk 00:00:35]}
{[%emt 00:00:51]} 31. Qxh7+ {[%clk 00:40:15]} {[%emt 00:00:18]} Kf8 {[%clk
00:01:02]} {[%emt 00:00:04]} 32. Qh8+ {[%clk 00:40:20]} {[%emt 00:00:25]} Ke7
{[%clk 00:01:29]} {[%emt 00:00:03]} 33. Re1+ {[%clk 00:40:37]} {[%emt
00:00:12]} Kd6 {[%clk 00:01:46]} {[%emt 00:00:14]} 34. Qb8+ {[%clk 00:40:35]}
{[%emt 00:00:31]} 1-0

[Event "Esbjerg Efterår 2024 - Esbjergmesterskabet"]
[Site "Esbjerg, Denmark"]
[Date "2024.10.20"]
[Round "6.3"]
[White "Jensen, Henrik Tranberg"]
[Black "Perets, Dmytro"]
[Result "0-1"]
[TimeControl "1.-3. 20 min + 5 sek, 4.-7. 90 min + 30 sek + 15 min efter 40 træk"]
[WhiteElo "2014"]
[BlackElo "2152"]

1. d4 {[%clk 01:29:15]} {[%emt 00:01:44]} g6 {[%clk 01:29:59]} {[%emt
00:01:01]} 2. c4 {[%clk 01:29:35]} {[%emt 00:00:11]} Bg7 {[%clk 01:30:26]}
{[%emt 00:00:03]} 3. Nc3 {[%clk 01:29:59]} {[%emt 00:00:06]} c5 {[%clk
01:30:53]} {[%emt 00:00:03]} 4. d5 {[%clk 01:30:22]} {[%emt 00:00:06]} Bxc3+
{[%clk 01:31:20]} {[%emt 00:00:04]} 5. bxc3 {[%clk 01:30:47]} {[%emt 00:00:05]}
f5 {[%clk 01:31:49]} {[%emt 00:00:02]} 6. h4 {[%clk 01:29:09]} {[%emt
00:02:08]} Qa5 {[%clk 01:32:12]} {[%emt 00:00:07]} 7. Qc2 {[%clk 01:28:28]}
{[%emt 00:01:09]} Nf6 {[%clk 01:30:37]} {[%emt 00:02:07]} 8. Nh3 {[%clk
01:28:35]} {[%emt 00:00:23]} d6 {[%clk 01:30:16]} {[%emt 00:00:52]} 9. Rb1
{[%clk 01:23:50]} {[%emt 00:05:15]} Ne4 {[%clk 01:29:40]} {[%emt 00:01:05]} 10.
Ng5 {[%clk 01:18:48]} {[%emt 00:05:33]} Qxc3+ {[%clk 01:24:42]} {[%emt
00:05:28]} 11. Qxc3 {[%clk 01:12:17]} {[%emt 00:07:01]} Nxc3 {[%clk 01:25:10]}
{[%emt 00:00:02]} 12. Bb2 {[%clk 01:10:05]} {[%emt 00:02:41]} Nxb1 {[%clk
01:25:38]} {[%emt 00:00:03]} 13. Bxh8 {[%clk 01:10:27]} {[%emt 00:00:02]} b5
{[%clk 01:26:07]} {[%emt 00:00:08]} 14. e3 {[%clk 01:07:02]} {[%emt 00:03:54]}
bxc4 {[%clk 01:21:26]} {[%emt 00:05:12]} 15. Bxc4 {[%clk 00:58:56]} {[%emt
00:08:36]} Na3 {[%clk 01:20:27]} {[%emt 00:01:29]} 16. Bb3 {[%clk 00:58:55]}
{[%emt 00:00:31]} c4 {[%clk 01:17:24]} {[%emt 00:03:34]} 17. Ba4+ {[%clk
00:59:00]} {[%emt 00:00:24]} Bd7 {[%clk 01:17:46]} {[%emt 00:00:08]} 18. Bd1
{[%clk 00:53:20]} {[%emt 00:06:09]} Na6 {[%clk 01:16:04]} {[%emt 00:02:12]} 19.
Nxh7 {[%clk 00:46:38]} {[%emt 00:07:12]} Nb4 {[%clk 01:14:47]} {[%emt
00:01:48]} 20. h5 {[%clk 00:39:18]} {[%emt 00:07:48]} gxh5 {[%clk 01:14:02]}
{[%emt 00:01:16]} 21. Rxh5 {[%clk 00:35:12]} {[%emt 00:04:35]} Nxa2 {[%clk
01:14:05]} {[%emt 00:00:29]} 22. Bb2 {[%clk 00:34:40]} {[%emt 00:01:00]} Nb5
{[%clk 00:55:38]} {[%emt 00:18:59]} 23. Nf6+ {[%clk 00:33:57]} {[%emt
00:01:13]} exf6 {[%clk 00:53:05]} {[%emt 00:03:03]} 24. Rh8+ {[%clk 00:28:53]}
{[%emt 00:05:33]} Ke7 {[%clk 00:51:58]} {[%emt 00:01:38]} 25. Rxa8 {[%clk
00:29:11]} {[%emt 00:00:12]} a6 {[%clk 00:52:20]} {[%emt 00:00:08]} 26. Rxa6
{[%clk 00:25:56]} {[%emt 00:03:44]} Nb4 {[%clk 00:52:01]} {[%emt 00:00:49]} 27.
Bxf6+ {[%clk 00:16:46]} {[%emt 00:09:40]} Kxf6 {[%clk 00:50:01]} {[%emt
00:02:31]} 28. Ra4 {[%clk 00:16:49]} {[%emt 00:00:26]} Nd3+ {[%clk 00:50:20]}
{[%emt 00:00:11]} 29. Kd2 {[%clk 00:17:05]} {[%emt 00:00:14]} Nb2 {[%clk
00:50:41]} {[%emt 00:00:09]} 30. Rb4 {[%clk 00:17:14]} {[%emt 00:00:21]} c3+
{[%clk 00:51:01]} {[%emt 00:00:11]} 31. Kc2 {[%clk 00:17:03]} {[%emt 00:00:39]}
Na3+ {[%clk 00:51:25]} {[%emt 00:00:07]} 32. Kb3 {[%clk 00:14:44]} {[%emt
00:02:49]} Nxd1 {[%clk 00:51:04]} {[%emt 00:00:51]} 33. Kxa3 {[%clk 00:14:57]}
{[%emt 00:00:17]} Bb5 {[%clk 00:50:57]} {[%emt 00:00:38]} 34. Kb3 {[%clk
00:14:33]} {[%emt 00:00:54]} Bd3 {[%clk 00:51:19]} {[%emt 00:00:08]} 0-1

[Event "Esbjerg Efterår 2024 - Esbjergmesterskabet"]
[Site "Esbjerg, Denmark"]
[Date "2024.10.20"]
[Round "6.4"]
[White "Hye, Allan"]
[Black "Justesen, Asger"]
[Result "1-0"]
[TimeControl "1.-3. 20 min + 5 sek, 4.-7. 90 min + 30 sek + 15 min efter 40 træk"]
[WhiteElo "1988"]
[BlackElo "2086"]

1. d4 {[%clk 01:30:35]} {[%emt 00:00:25]} Nf6 {[%clk 01:24:19]} {[%emt
00:06:42]} 2. c4 {[%clk 01:30:11]} {[%emt 00:00:54]} e6 {[%clk 01:24:40]}
{[%emt 00:00:08]} 3. Nc3 {[%clk 01:30:32]} {[%emt 00:00:10]} Bb4 {[%clk
01:23:18]} {[%emt 00:01:53]} 4. f3 {[%clk 01:29:30]} {[%emt 00:01:32]} c5
{[%clk 01:20:56]} {[%emt 00:02:52]} 5. d5 {[%clk 01:27:47]} {[%emt 00:02:13]}
d6 {[%clk 01:20:29]} {[%emt 00:00:56]} 6. e4 {[%clk 01:24:57]} {[%emt
00:03:20]} O-O {[%clk 01:17:44]} {[%emt 00:03:14]} 7. Bd3 {[%clk 01:18:12]}
{[%emt 00:07:17]} Bxc3+ {[%clk 01:11:35]} {[%emt 00:06:39]} 8. bxc3 {[%clk
01:17:43]} {[%emt 00:00:58]} e5 {[%clk 01:11:58]} {[%emt 00:00:07]} 9. Ne2
{[%clk 01:14:50]} {[%emt 00:03:23]} Nh5 {[%clk 01:08:53]} {[%emt 00:03:36]} 10.
O-O {[%clk 01:08:58]} {[%emt 00:06:21]} Nd7 {[%clk 01:07:37]} {[%emt 00:01:47]}
11. g4 {[%clk 01:05:42]} {[%emt 00:03:46]} Nhf6 {[%clk 01:02:06]} {[%emt
00:06:02]} 12. Ng3 {[%clk 01:03:48]} {[%emt 00:02:23]} Re8 {[%clk 00:57:19]}
{[%emt 00:05:17]} 13. g5 {[%clk 01:01:26]} {[%emt 00:02:52]} Nf8 {[%clk
00:56:48]} {[%emt 00:01:01]} 14. gxf6 {[%clk 01:01:41]} {[%emt 00:00:16]} Qxf6
{[%clk 00:57:12]} {[%emt 00:00:06]} 15. Kh1 {[%clk 01:00:38]} {[%emt 00:01:32]}
Ng6 {[%clk 00:57:12]} {[%emt 00:00:30]} 16. Be3 {[%clk 00:50:47]} {[%emt
00:10:21]} Nf4 {[%clk 00:52:45]} {[%emt 00:04:57]} 17. Rg1 {[%clk 00:46:43]}
{[%emt 00:04:35]} Ng6 {[%clk 00:43:16]} {[%emt 00:09:58]} 18. Nf5 {[%clk
00:44:23]} {[%emt 00:02:50]} Qd8 {[%clk 00:41:43]} {[%emt 00:02:03]} 19. Rb1
{[%clk 00:42:55]} {[%emt 00:01:58]} b6 {[%clk 00:41:51]} {[%emt 00:00:22]} 20.
Rb2 {[%clk 00:42:18]} {[%emt 00:01:07]} Kh8 {[%clk 00:40:12]} {[%emt 00:02:09]}
21. Rbg2 {[%clk 00:41:33]} {[%emt 00:01:15]} Rg8 {[%clk 00:40:20]} {[%emt
00:00:23]} 22. Qe1 {[%clk 00:38:09]} {[%emt 00:03:53]} Rb8 {[%clk 00:31:53]}
{[%emt 00:08:57]} 23. Bg5 {[%clk 00:36:09]} {[%emt 00:02:30]} f6 {[%clk
00:28:57]} {[%emt 00:03:26]} 24. Bd2 {[%clk 00:29:49]} {[%emt 00:06:51]} Bxf5
{[%clk 00:29:16]} {[%emt 00:00:11]} 25. exf5 {[%clk 00:30:09]} {[%emt
00:00:09]} Ne7 {[%clk 00:29:17]} {[%emt 00:00:29]} 26. Qh4 {[%clk 00:28:25]}
{[%emt 00:02:14]} b5 {[%clk 00:27:51]} {[%emt 00:01:57]} 27. Rg3 {[%clk
00:27:56]} {[%emt 00:00:58]} g5 {[%clk 00:20:33]} {[%emt 00:07:48]} 28. fxg6
{[%clk 00:28:02]} {[%emt 00:00:24]} Rg7 {[%clk 00:19:53]} {[%emt 00:01:10]} 29.
gxh7 {[%clk 00:25:58]} {[%emt 00:02:33]} Rf7 {[%clk 00:17:14]} {[%emt
00:03:10]} 30. Rg8+ {[%emt 00:00:19]} 1-0